Workbook

Sheet Sheet1
A1: 拍卖标的清单
A2: 序号 | B2: 资产名称 | C2: 规格型号 | D2: 计量单位 | E2: 数量 | F2: 单价（元） | G2: 汇总价（元） | H2: 起拍价（元） | I2: 保证金（元） | J2: 备注
A3: 1 | B3: 项链 | C3: 卡地亚 | D3: 条 | E3: 1 | F3: 4,650 | G3: 4,650 | H3: 4,650 | I3: 5,000
A4: 2 | B4: 项链 | C4: 钻石 | D4: 条 | E4: 1 | F4: 5,100 | G4: 5,100 | H4: 5,100 | I4: 5,000
A5: 3 | B5: 翡翠吊坠 | C5: 绿色 | D5: 个 | E5: 1 | F5: 4,800 | G5: 4,800 | H5: 4,800 | I5: 5,000
A6: 4 | B6: 戒指 | C6: 六喜 Pd950 D0196ct d0078ct | D6: 枚 | E6: 1 | F6: 2,400 | G6: 2,400 | H6: 2,400 | I6: 3,000
A7: 5 | B7: 戒指 | C7: 18k D010 | D7: 枚 | E7: 1 | F7: 1,800 | G7: 1,800 | H7: 1,800 | I7: 2,000
A8: 6 | B8: 和田玉手把件 | C8: 和田玉238.901g | D8: 只 | E8: 1 | F8: 12,000 | G8: 12,000 | H8: 12,000 | I8: 1,200
A9: 7 | B9: 手镯 | D9: 只 | E9: 1 | F9: 3,000 | G9: 3,000 | H9: 3,000 | I9: 3,000
A10: 8 | B10: 白色吊坠项链 | D10: 只 | E10: 1 | F10: 12,000 | G10: 12,000 | H10: 12,000 | I10: 12,000
A11: 9 | B11: 雕花手镯 | C11: 部分翠绿 | D11: 只 | E11: 1 | F11: 6,000 | G11: 6,000 | H11: 6,000 | I11: 6,000
A12: 10 | B12: 手镯 | C12: HA33100900850 | D12: 只 | E12: 1 | F12: 18,000 | G12: 18,000 | H12: 18,000 | I12: 18,000
A13: 11 | B13: 雷达手表 | C13: RAD010984723 | D13: 只 | E13: 1 | F13: 7,080 | G13: 7,080 | H13: 7,080 | I13: 7,100
A14: 12 | B14: 青花郎 | C14: 50年陈酿 53度 500ml/瓶 | D14: 瓶 | E14: 6 | F14: 2,590 | G14: =F14*E14 -> 15,540 | H14: 15,540 | I14: 20,000
A15: 13 | B15: 茅台 | C15: 2014年 53度 500ml/瓶 | D15: 瓶 | E15: 12 | F15: 1,610 | G15: =F15*E15 -> 19,320 | H15: 19,320 | I15: 20,000
A16: 14 | B16: 茅台 | C16: 30年 53度 礼盒装 500/瓶 | D16: 瓶 | E16: 11 | F16: 7,412 | G16: =F16*E16 -> 81,532 | H16: 81,540 | I16: 90,000
A17: 15 | B17: 五粮液 | C17: 50度 15年 礼盒装 500ml/瓶 | D17: 瓶 | E17: 4 | F17: 1,960 | G17: =F17*E17 -> 7,840 | H17: 7,840 | I17: 8,000
A18: 16 | B18: 五粮液 | C18: 盛世佳酿 52度 500ml/瓶 | D18: 瓶 | E18: 2 | F18: 370 | G18: =F18*E18 -> 740 | H18: 740 | I18: 1,000
A19: 17 | B19: 茅台 | C19: 43度 680ml 礼盒装 蓝色瓶 | D19: 瓶 | E19: 1 | F19: 1,680 | G19: 1,680 | H19: 1,680 | I19: 2,000
A20: 18 | B20: 香烟 | C20: 黄金叶粗杆 | D20: 条 | E20: 3 | F20: 700 | G20: =F20*E20 -> 2,100 | H20: 2,100 | I20: 20,000 | J20: 香烟整体 一批拍卖
A21: 19 | B21: 香烟 | C21: 黄金叶细杆 | D21: 条 | E21: 3 | F21: 630 | G21: 1,890 | H21: 1,890
A22: 20 | B22: 香烟 | C22: 贵烟 | D22: 条 | E22: 7 | F22: 700 | G22: 4,900 | H22: 4,900
A23: 21 | B23: 香烟 | C23: 大重九 | D23: 条 | E23: 6 | F23: 700 | G23: 4,200 | H23: 4,200
A24: 22 | B24: 香烟 | C24: 娇子 | D24: 条 | E24: 2 | F24: 315 | G24: 630 | H24: 630
A25: 23 | B25: 香烟 | C25: 黄鹤楼细杆 | D25: 条 | E25: 1 | F25: 700 | G25: 700 | H25: 700
A26: 24 | B26: 香烟 | C26: 黄鹤楼 峡谷情 | D26: 条 | E26: 1 | F26: 350 | G26: 350 | H26: 350
A27: 25 | B27: 香烟 | C27: 软中华 | D27: 条 | E27: 2 | F27: 455 | G27: 910 | H27: 910
A28: 26 | B28: 香烟 | C28: 利群 | D28: 条 | E28: 2 | F28: 700 | G28: 1,400 | H28: 1,400
A29: 27 | B29: 香烟 | C29: 荷花 | D29: 条 | E29: 1 | F29: 350 | G29: 350 | H29: 350
A30: 28 | B30: 香烟 | C30: 熊猫 | D30: 条 | E30: 1 | F30: 700 | G30: 700 | H30: 700
A31: 29 | B31: 香烟 | C31: 黄鹤楼 | D31: 条 | E31: 1 | F31: 700 | G31: 700 | H31: 700
A32: 30 | B32: 虫草 | C32: 钟氏虫草20×25×8cm 包装 | D32: 盒 | E32: 50克/盒 | F32: 362 | G32: =F32*50 -> 18,100 | H32: 18,100 | I32: 170,000 | J32: 虫草整体 一批拍卖
A33: 31 | B33: 虫草 | C33: 虫草纯粉片 | D33: 盒 | E33: 1 | F33: 258 | G33: 258 | H33: 258
A34: 32 | B34: 虫草 | D34: 盒 | E34: 1 | F34: 258 | G34: 258 | H34: 258
A35: 33 | B35: 虫草 | C35: 北京同仁堂50克 23×23×5cm | D35: 盒 | E35: 50克/盒 | F35: 307 | G35: =F35*50 -> 15,350 | H35: 15,350
A36: 34 | B36: 虫草 | C36: 那曲牌19×20×6cm | D36: 盒 | E36: 50克/盒 | F36: 307 | G36: =F36*50 -> 15,350 | H36: 15,350
A37: 35 | B37: 虫草 | C37: 28×18×6cm 包装 | D37: 盒 | E37: 100克/盒 | F37: 307 | G37: 30,700 | H37: 30,700
A38: 36 | B38: 虫草 | C38: 908 20×20×5cm 包装 | D38: 盒 | E38: 50克/盒 | F38: 307 | G38: =F38*50 -> 15,350 | H38: 15,350
A39: 37 | B39: 虫草 | C39: 钟氏虫草21×15×5cm 包装 | D39: 盒 | E39: 50克/盒 | F39: 362 | G39: =F39*50 -> 18,100 | H39: 18,100
A40: 38 | B40: 虫草 | C40: 圆盒 20×6cm 包装 | D40: 盒 | E40: 2盒 20克/盒 | F40: 278 | G40: 11,120 | H40: 11,120
A41: 39 | B41: 虫草 | C41: 钟氏虫草 32×20×8cm 未拆封、无规格 | D41: 盒 | E41: 100克/盒 | F41: 362 | G41: =F41*100 -> 36,200 | H41: 36,200
A42: 40 | B42: 虫草 | C42: 极草 10×10×10cm 未拆封、无规格 | D42: 盒 | E42: 20克/盒 | F42: 307 | G42: =F42*20 -> 6,140 | H42: 6,140

Sheet Sheet2

Sheet Sheet3
